[Event "Titled Tuesday Blitz November 08 Early 2022"]
[White "Danielyan, Vahe"]
[Black "Maghsoodloo, Parham"]
[WhiteFideId "13304828"]
[BlackFideId "12539929"]
[WhiteElo "2423"]
[BlackElo "2676"]
[Result "0-1"]
[Round "02"]
[TimeControl "180+1"]
[Date "2022.11.08"]
[WhiteClock "0:00:34"]
[BlackClock "0:01:40"]

1. e4 {[%clk 0:03:00]}  c5 {[%clk 0:02:59]} 2. Nc3 {[%clk 0:03:00]}  e6 {[%clk 0:02:59]} 3. Nf3 {[%clk 0:02:59]}  Nc6 {[%clk 0:03:00]} 4. Bb5 {[%clk 0:02:59]}  Nge7 {[%clk 0:02:59]} 5. O-O {[%clk 0:02:58]}  Nd4 {[%clk 0:02:59]} 6. Nxd4 {[%clk 0:02:52]}  cxd4 {[%clk 0:02:59]} 7. Ne2 {[%clk 0:02:53]}  a6 {[%clk 0:03:00]} 8. Bd3 {[%clk 0:02:52]}  Nc6 {[%clk 0:03:00]} 9. c3 {[%clk 0:02:52]}  Bc5 {[%clk 0:03:01]} 10. b4 {[%clk 0:02:47]}  Ba7 {[%clk 0:03:01]} 11. Bb2 {[%clk 0:02:48]}  O-O {[%clk 0:03:00]} 12. cxd4 {[%clk 0:02:44]}  Nxb4 {[%clk 0:03:00]} 13. Bb1 {[%clk 0:02:44]}  Nc6 {[%clk 0:02:53]} 14. d5 {[%clk 0:02:34]}  exd5 {[%clk 0:02:52]} 15. exd5 {[%clk 0:02:34]}  Ne7 {[%clk 0:02:52]} 16. d6 {[%clk 0:02:33]}  Ng6 {[%clk 0:02:52]} 17. Ng3 {[%clk 0:02:31]}  b5 {[%clk 0:02:39]} 18. Qf3 {[%clk 0:02:23]}  Rb8 {[%clk 0:02:38]} 19. Nf5 {[%clk 0:02:23]}  Bb7 {[%clk 0:02:39]} 20. Qg3 {[%clk 0:02:18]}  f6 {[%clk 0:02:35]} 21. a4 {[%clk 0:02:17]}  bxa4 {[%clk 0:02:27]} 22. Rxa4 {[%clk 0:02:04]}  Bd5 {[%clk 0:02:26]} 23. Bc3 {[%clk 0:01:58]}  Be6 {[%clk 0:02:13]} 24. h4 {[%clk 0:01:52]}  Rb5 {[%clk 0:02:13]} 25. Rxa6 {[%clk 0:01:29]}  Qb8 {[%clk 0:01:44]} 26. Ne7+ {[%clk 0:01:16]}  Nxe7 {[%clk 0:01:44]} 27. dxe7 {[%clk 0:01:17]}  Qxg3 {[%clk 0:01:44]} 28. exf8=Q+ {[%clk 0:01:08]}  Kxf8 {[%clk 0:01:44]} 29. Rxa7 {[%clk 0:01:09]}  Qxh4 {[%clk 0:01:44]} 30. g3 {[%clk 0:00:57]}  Qh3 {[%clk 0:01:44]} 31. Be4 {[%clk 0:00:53]}  Bd5 {[%clk 0:01:39]} 32. Bb4+ {[%clk 0:00:44]}  Kf7 {[%clk 0:01:39]} 33. Re1 {[%clk 0:00:34]}  Bxe4 {[%clk 0:01:39]} 34. Rxe4 {[%clk 0:00:34]}  Rh5 {[%clk 0:01:40]} 0-1


[Site "https://www.chess.com"]

[Event "Titled Tuesday Blitz November 08 Early 2022"]
[White "Deac, Bogdan-Daniel"]
[Black "Jarocka, Liwia"]
[WhiteFideId "1226380"]
[BlackFideId "21807558"]
[WhiteElo "2648"]
[BlackElo "1989"]
[Result "1-0"]
[Round "02"]
[TimeControl "180+1"]
[Date "2022.11.09"]
[WhiteClock "0:01:09"]
[BlackClock "0:00:19"]

1. Nf3 {[%clk 0:03:00]}  c5 {[%clk 0:02:57]} 2. e3 {[%clk 0:03:00]}  Nc6 {[%clk 0:02:57]} 3. d4 {[%clk 0:03:01]}  cxd4 {[%clk 0:02:56]} 4. exd4 {[%clk 0:03:01]}  d5 {[%clk 0:02:57]} 5. c3 {[%clk 0:03:02]}  Nf6 {[%clk 0:02:56]} 6. Bd3 {[%clk 0:03:01]}  g6 {[%clk 0:02:57]} 7. Qc2 {[%clk 0:02:58]}  Bg7 {[%clk 0:02:55]} 8. h3 {[%clk 0:02:57]}  O-O {[%clk 0:02:54]} 9. O-O {[%clk 0:02:58]}  Bd7 {[%clk 0:02:53]} 10. Re1 {[%clk 0:02:52]}  Rc8 {[%clk 0:02:52]} 11. Qb3 {[%clk 0:02:53]}  b6 {[%clk 0:02:50]} 12. Ba6 {[%clk 0:02:49]}  Rc7 {[%clk 0:02:47]} 13. Bf4 {[%clk 0:02:49]}  e5 {[%clk 0:02:23]} 14. Nxe5 {[%clk 0:02:47]}  Na5 {[%clk 0:02:23]} 15. Qd1 {[%clk 0:02:46]}  Bf5 {[%clk 0:02:19]} 16. Na3 {[%clk 0:02:45]}  Ne4 {[%clk 0:02:08]} 17. Bd3 {[%clk 0:02:30]}  f6 {[%clk 0:01:55]} 18. Ng4 {[%clk 0:02:25]}  Re7 {[%clk 0:01:50]} 19. Ne3 {[%clk 0:02:24]}  Be6 {[%clk 0:01:44]} 20. b4 {[%clk 0:02:14]}  Nc6 {[%clk 0:01:36]} 21. Bxe4 {[%clk 0:02:13]}  dxe4 {[%clk 0:01:33]} 22. d5 {[%clk 0:02:13]}  Rd7 {[%clk 0:01:33]} 23. Qa4 {[%clk 0:02:10]}  Bxd5 {[%clk 0:00:49]} 24. Nxd5 {[%clk 0:02:08]}  Rxd5 {[%clk 0:00:49]} 25. Qxc6 {[%clk 0:02:07]}  f5 {[%clk 0:00:50]} 26. Nb5 {[%clk 0:02:01]}  Kh8 {[%clk 0:00:44]} 27. Nd4 {[%clk 0:01:58]}  Rf6 {[%clk 0:00:36]} 28. Qc4 {[%clk 0:01:54]}  h6 {[%clk 0:00:29]} 29. Rad1 {[%clk 0:01:43]}  Kh7 {[%clk 0:00:28]} 30. Qb3 {[%clk 0:01:42]}  g5 {[%clk 0:00:25]} 31. Bh2 {[%clk 0:01:36]}  a6 {[%clk 0:00:22]} 32. a4 {[%clk 0:01:10]}  Qc8 {[%clk 0:00:19]} 33. Qxd5 {[%clk 0:01:09]} 1-0


[Site "https://www.chess.com"]

[Event "Titled Tuesday Blitz November 08 Early 2022"]
[White "Devaev, Alexander"]
[Black "Harsh Suresh"]
[WhiteFideId "4169395"]
[BlackFideId "45018464"]
[WhiteElo "2225"]
[BlackElo "2227"]
[Result "0-1"]
[Round "02"]
[TimeControl "180+1"]
[Date "2022.11.09"]
[WhiteClock "0:00:07"]
[BlackClock "0:00:08"]

1. Nf3 {[%clk 0:03:00]}  d5 {[%clk 0:02:58]} 2. c4 {[%clk 0:03:01]}  dxc4 {[%clk 0:02:54]} 3. e3 {[%clk 0:03:01]}  Nf6 {[%clk 0:02:44]} 4. Bxc4 {[%clk 0:02:59]}  e6 {[%clk 0:02:45]} 5. O-O {[%clk 0:02:59]}  Be7 {[%clk 0:02:45]} 6. Qc2 {[%clk 0:02:58]}  O-O {[%clk 0:02:45]} 7. Be2 {[%clk 0:02:57]}  b6 {[%clk 0:02:44]} 8. d3 {[%clk 0:02:55]}  Bb7 {[%clk 0:02:44]} 9. Nbd2 {[%clk 0:02:56]}  Nbd7 {[%clk 0:02:41]} 10. b3 {[%clk 0:02:56]}  c5 {[%clk 0:02:38]} 11. Bb2 {[%clk 0:02:56]}  Nd5 {[%clk 0:02:36]} 12. Ne4 {[%clk 0:02:56]}  N7f6 {[%clk 0:02:35]} 13. Ng3 {[%clk 0:02:55]}  Qc7 {[%clk 0:02:20]} 14. a3 {[%clk 0:02:55]}  Rfd8 {[%clk 0:02:17]} 15. Rfe1 {[%clk 0:02:55]}  Ng4 {[%clk 0:01:53]} 16. Bf1 {[%clk 0:02:47]}  Bd6 {[%clk 0:01:41]} 17. Rac1 {[%clk 0:02:02]}  Rac8 {[%clk 0:01:36]} 18. d4 {[%clk 0:01:40]}  cxd4 {[%clk 0:01:30]} 19. Qxc7 {[%clk 0:01:31]}  Rxc7 {[%clk 0:01:28]} 20. Nxd4 {[%clk 0:01:32]}  a6 {[%clk 0:01:20]} 21. Rxc7 {[%clk 0:01:27]}  Bxc7 {[%clk 0:01:15]} 22. Rc1 {[%clk 0:01:27]}  Be5 {[%clk 0:01:05]} 23. Be2 {[%clk 0:01:19]}  Ngf6 {[%clk 0:01:02]} 24. Bf3 {[%clk 0:00:51]}  g6 {[%clk 0:00:45]} 25. Nge2 {[%clk 0:00:50]}  h5 {[%clk 0:00:39]} 26. h3 {[%clk 0:00:47]}  h4 {[%clk 0:00:38]} 27. Rc2 {[%clk 0:00:43]}  Rc8 {[%clk 0:00:32]} 28. Rxc8+ {[%clk 0:00:42]}  Bxc8 {[%clk 0:00:33]} 29. Nc1 {[%clk 0:00:41]}  Bd7 {[%clk 0:00:20]} 30. Nd3 {[%clk 0:00:28]}  Bc7 {[%clk 0:00:21]} 31. e4 {[%clk 0:00:20]}  Nf4 {[%clk 0:00:20]} 32. Nxf4 {[%clk 0:00:20]}  Bxf4 {[%clk 0:00:21]} 33. Ne2 {[%clk 0:00:19]}  Bg5 {[%clk 0:00:21]} 34. Bd4 {[%clk 0:00:12]}  b5 {[%clk 0:00:21]} 35. Bb2 {[%clk 0:00:09]}  Ne8 {[%clk 0:00:20]} 36. e5 {[%clk 0:00:08]}  Be7 {[%clk 0:00:19]} 37. Nd4 {[%clk 0:00:08]}  Nc7 {[%clk 0:00:19]} 38. Nc6 {[%clk 0:00:08]}  Bf8 {[%clk 0:00:16]} 39. Kf1 {[%clk 0:00:06]}  Nd5 {[%clk 0:00:11]} 40. Bxd5 {[%clk 0:00:06]}  exd5 {[%clk 0:00:12]} 41. Nd4 {[%clk 0:00:06]}  a5 {[%clk 0:00:09]} 42. Ke2 {[%clk 0:00:04]}  b4 {[%clk 0:00:10]} 43. axb4 {[%clk 0:00:04]}  Bxb4 {[%clk 0:00:09]} 44. Ke3 {[%clk 0:00:04]}  Kf8 {[%clk 0:00:08]} 45. f4 {[%clk 0:00:05]}  Ke7 {[%clk 0:00:07]} 46. Bc1 {[%clk 0:00:05]}  Bc5 {[%clk 0:00:06]} 47. Bd2 {[%clk 0:00:05]}  Bb6 {[%clk 0:00:06]} 48. Be1 {[%clk 0:00:06]}  a4 {[%clk 0:00:06]} 49. Bxh4+ {[%clk 0:00:06]}  Ke8 {[%clk 0:00:06]} 50. bxa4 {[%clk 0:00:07]}  Bxa4 {[%clk 0:00:07]} 51. Bf2 {[%clk 0:00:06]}  Bb5 {[%clk 0:00:07]} 52. Kf3 {[%clk 0:00:06]}  Bd3 {[%clk 0:00:07]} 53. Kg3 {[%clk 0:00:07]}  Be4 {[%clk 0:00:07]} 54. Nf3 {[%clk 0:00:07]}  Ba5 {[%clk 0:00:07]} 55. Ng5 {[%clk 0:00:07]}  Bf5 {[%clk 0:00:07]} 56. Bd4 {[%clk 0:00:07]}  Be1+ {[%clk 0:00:06]} 57. Bf2 {[%clk 0:00:08]}  Bd2 {[%clk 0:00:06]} 58. Nf3 {[%clk 0:00:08]}  Bc1 {[%clk 0:00:06]} 59. Nd4 {[%clk 0:00:08]}  Be4 {[%clk 0:00:07]} 60. Nf3 {[%clk 0:00:08]}  Bd2 {[%clk 0:00:07]} 61. Ng5 {[%clk 0:00:08]}  Bf5 {[%clk 0:00:07]} 62. Kh2 {[%clk 0:00:07]}  Bxf4+ {[%clk 0:00:07]} 63. Bg3 {[%clk 0:00:08]}  Bxg5 {[%clk 0:00:08]} 64. h4 {[%clk 0:00:08]}  Be3 {[%clk 0:00:08]} 65. Kh1 {[%clk 0:00:07]}  d4 {[%clk 0:00:08]} 0-1


[Site "https://www.chess.com"]

[Event "Titled Tuesday Blitz November 08 Early 2022"]
[White "Dubov, Daniil"]
[Black "Tleptsok, Ruslan"]
[WhiteFideId "24126055"]
[BlackFideId "24104485"]
[WhiteElo "2791"]
[BlackElo "2130"]
[Result "0-1"]
[Round "02"]
[TimeControl "180+1"]
[Date "2022.11.08"]
[WhiteClock "0:00:15"]
[BlackClock "0:01:05"]

1. e4 {[%clk 0:03:00]}  d5 {[%clk 0:03:00]} 2. exd5 {[%clk 0:03:00]}  Nf6 {[%clk 0:03:00]} 3. Nf3 {[%clk 0:02:52]}  Bg4 {[%clk 0:03:00]} 4. h3 {[%clk 0:02:49]}  Bxf3 {[%clk 0:02:57]} 5. Qxf3 {[%clk 0:02:50]}  Qxd5 {[%clk 0:02:58]} 6. Qxd5 {[%clk 0:02:49]}  Nxd5 {[%clk 0:02:59]} 7. Nc3 {[%clk 0:02:48]}  Nxc3 {[%clk 0:02:55]} 8. dxc3 {[%clk 0:02:41]}  Nc6 {[%clk 0:02:55]} 9. Be3 {[%clk 0:02:40]}  O-O-O {[%clk 0:02:53]} 10. g3 {[%clk 0:02:38]}  a6 {[%clk 0:02:44]} 11. Bg2 {[%clk 0:02:38]}  e6 {[%clk 0:02:42]} 12. Ke2 {[%clk 0:02:38]}  Bd6 {[%clk 0:02:40]} 13. a4 {[%clk 0:02:38]}  Ne7 {[%clk 0:02:37]} 14. Rhd1 {[%clk 0:02:32]}  Nf5 {[%clk 0:02:32]} 15. Bd2 {[%clk 0:02:31]}  h5 {[%clk 0:02:32]} 16. a5 {[%clk 0:02:31]}  f6 {[%clk 0:02:17]} 17. b4 {[%clk 0:02:30]}  g5 {[%clk 0:02:15]} 18. g4 {[%clk 0:02:24]}  Ne7 {[%clk 0:02:12]} 19. c4 {[%clk 0:02:21]}  Ng6 {[%clk 0:02:10]} 20. c5 {[%clk 0:02:08]}  Be5 {[%clk 0:02:08]} 21. c6 {[%clk 0:02:02]}  bxc6 {[%clk 0:02:02]} 22. Ra3 {[%clk 0:01:56]}  hxg4 {[%clk 0:02:01]} 23. hxg4 {[%clk 0:01:49]}  Rh2 {[%clk 0:02:00]} 24. Bxc6 {[%clk 0:01:46]}  Nf4+ {[%clk 0:01:50]} 25. Bxf4 {[%clk 0:01:42]}  Bxf4 {[%clk 0:01:50]} 26. Rxd8+ {[%clk 0:01:40]}  Kxd8 {[%clk 0:01:49]} 27. b5 {[%clk 0:01:41]}  Kc8 {[%clk 0:01:42]} 28. b6 {[%clk 0:00:50]}  Bd6 {[%clk 0:01:33]} 29. Rf3 {[%clk 0:00:47]}  Bf4 {[%clk 0:01:28]} 30. Rd3 {[%clk 0:00:42]}  Bd6 {[%clk 0:01:25]} 31. c4 {[%clk 0:00:42]}  Rh8 {[%clk 0:01:23]} 32. Kf3 {[%clk 0:00:38]}  Rh3+ {[%clk 0:01:20]} 33. Ke4 {[%clk 0:00:38]}  f5+ {[%clk 0:01:17]} 34. gxf5 {[%clk 0:00:24]}  exf5+ {[%clk 0:01:18]} 35. Kd4 {[%clk 0:00:24]}  Be5+ {[%clk 0:01:15]} 36. Kxe5 {[%clk 0:00:24]}  Rxd3 {[%clk 0:01:15]} 37. Kxf5 {[%clk 0:00:24]}  cxb6 {[%clk 0:01:15]} 38. axb6 {[%clk 0:00:23]}  Rc3 {[%clk 0:01:12]} 39. Bd5 {[%clk 0:00:22]}  a5 {[%clk 0:01:12]} 40. Ke5 {[%clk 0:00:18]}  a4 {[%clk 0:01:12]} 41. Kd6 {[%clk 0:00:19]}  a3 {[%clk 0:01:10]} 42. c5 {[%clk 0:00:19]}  Rd3 {[%clk 0:01:08]} 43. c6 {[%clk 0:00:13]}  Rxd5+ {[%clk 0:01:04]} 44. Kxd5 {[%clk 0:00:14]}  a2 {[%clk 0:01:05]} 45. Kd6 {[%clk 0:00:14]}  a1=Q {[%clk 0:01:06]} 46. b7+ {[%clk 0:00:14]}  Kb8 {[%clk 0:01:06]} 47. Kd7 {[%clk 0:00:15]}  Qd4+ {[%clk 0:01:05]} 0-1


[Site "https://www.chess.com"]

[Event "Titled Tuesday Blitz November 08 Early 2022"]
[White "Durarbayli, Vasif"]
[Black "Garcia Ramos, Daniel"]
[WhiteFideId "13402935"]
[BlackFideId "32010311"]
[WhiteElo "2586"]
[BlackElo "2357"]
[Result "1-0"]
[Round "02"]
[TimeControl "180+1"]
[Date "2022.11.09"]
[WhiteClock "0:00:16"]
[BlackClock "0:00:03"]

1. e4 {[%clk 0:03:00]}  c6 {[%clk 0:02:54]} 2. d4 {[%clk 0:02:50]}  d5 {[%clk 0:02:54]} 3. e5 {[%clk 0:02:50]}  c5 {[%clk 0:02:53]} 4. dxc5 {[%clk 0:02:50]}  e6 {[%clk 0:02:53]} 5. Nf3 {[%clk 0:02:49]}  Bxc5 {[%clk 0:02:52]} 6. a3 {[%clk 0:02:49]}  Nc6 {[%clk 0:02:48]} 7. Bd3 {[%clk 0:02:38]}  Qc7 {[%clk 0:02:35]} 8. b4 {[%clk 0:02:10]}  Bd4 {[%clk 0:01:56]} 9. Nxd4 {[%clk 0:01:54]}  Qxe5+ {[%clk 0:01:52]} 10. Ne2 {[%clk 0:01:35]}  Qxa1 {[%clk 0:01:51]} 11. c3 {[%clk 0:01:12]}  Qa2 {[%clk 0:01:40]} 12. Nd2 {[%clk 0:01:09]}  d4 {[%clk 0:01:12]} 13. c4 {[%clk 0:00:40]}  Bd7 {[%clk 0:00:21]} 14. O-O {[%clk 0:00:25]}  Ne5 {[%clk 0:00:17]} 15. Bb1 {[%clk 0:00:25]}  Qa1 {[%clk 0:00:17]} 16. Qb3 {[%clk 0:00:22]}  d3 {[%clk 0:00:15]} 17. Nc3 {[%clk 0:00:20]}  Nf6 {[%clk 0:00:03]} 18. Bb2 {[%clk 0:00:19]}  Qxb2 {[%clk 0:00:03]} 19. Qxb2 {[%clk 0:00:20]}  O-O {[%clk 0:00:03]} 20. Re1 {[%clk 0:00:18]}  Nc6 {[%clk 0:00:03]} 21. Bxd3 {[%clk 0:00:18]}  Rfd8 {[%clk 0:00:04]} 22. Bf1 {[%clk 0:00:19]}  Be8 {[%clk 0:00:04]} 23. Nde4 {[%clk 0:00:19]}  Nxe4 {[%clk 0:00:04]} 24. Nxe4 {[%clk 0:00:20]}  Rac8 {[%clk 0:00:03]} 25. c5 {[%clk 0:00:20]}  Nd4 {[%clk 0:00:02]} 26. Nd6 {[%clk 0:00:21]}  Nf5 {[%clk 0:00:02]} 27. Nxc8 {[%clk 0:00:21]}  Rxc8 {[%clk 0:00:03]} 28. Rd1 {[%clk 0:00:20]}  Bc6 {[%clk 0:00:03]} 29. Qe5 {[%clk 0:00:16]} 1-0


[Site "https://www.chess.com"]

[Event "Titled Tuesday Blitz November 08 Early 2022"]
[White "Fiedorek, Michal"]
[Black "Aung Thant Zin"]
[WhiteFideId "1199528"]
[BlackFideId "13000063"]
[WhiteElo "2201"]
[BlackElo "2278"]
[Result "0-1"]
[Round "02"]
[TimeControl "180+1"]
[Date "2022.11.09"]
[WhiteClock "0:00:03"]
[BlackClock "0:01:19"]

1. d4 {[%clk 0:03:00]}  Nf6 {[%clk 0:02:59]} 2. Nf3 {[%clk 0:03:00]}  d5 {[%clk 0:02:58]} 3. Bf4 {[%clk 0:02:58]}  e6 {[%clk 0:02:58]} 4. e3 {[%clk 0:02:58]}  c5 {[%clk 0:02:58]} 5. c3 {[%clk 0:02:56]}  Nc6 {[%clk 0:02:57]} 6. Nbd2 {[%clk 0:02:55]}  Bd6 {[%clk 0:02:57]} 7. Bg3 {[%clk 0:02:54]}  O-O {[%clk 0:02:54]} 8. Bd3 {[%clk 0:02:53]}  Qe7 {[%clk 0:02:52]} 9. Ne5 {[%clk 0:02:52]}  Bxe5 {[%clk 0:02:47]} 10. dxe5 {[%clk 0:02:51]}  Nd7 {[%clk 0:02:47]} 11. f4 {[%clk 0:02:42]}  b6 {[%clk 0:02:45]} 12. Nf3 {[%clk 0:02:33]}  g6 {[%clk 0:02:40]} 13. Bh4 {[%clk 0:02:06]}  Qe8 {[%clk 0:02:35]} 14. e4 {[%clk 0:00:49]}  dxe4 {[%clk 0:02:26]} 15. Bxe4 {[%clk 0:00:49]}  Bb7 {[%clk 0:02:26]} 16. Qd6 {[%clk 0:00:18]}  Rc8 {[%clk 0:02:06]} 17. O-O-O {[%clk 0:00:18]}  Ndb8 {[%clk 0:01:59]} 18. g4 {[%clk 0:00:18]}  Na5 {[%clk 0:01:58]} 19. Bxb7 {[%clk 0:00:17]}  Nxb7 {[%clk 0:01:58]} 20. Qd3 {[%clk 0:00:13]}  c4 {[%clk 0:01:46]} 21. Qc2 {[%clk 0:00:12]}  Nc5 {[%clk 0:01:45]} 22. f5 {[%clk 0:00:11]}  exf5 {[%clk 0:01:43]} 23. gxf5 {[%clk 0:00:11]}  Nd3+ {[%clk 0:01:43]} 24. Kb1 {[%clk 0:00:11]}  Nc6 {[%clk 0:01:43]} 25. Bf6 {[%clk 0:00:10]}  Qd7 {[%clk 0:01:30]} 26. Rhg1 {[%clk 0:00:09]}  Qxf5 {[%clk 0:01:29]} 27. Qd2 {[%clk 0:00:05]}  Ndb4+ {[%clk 0:01:25]} 28. Ka1 {[%clk 0:00:03]}  Rcd8 {[%clk 0:01:19]} 0-1


[Site "https://www.chess.com"]

[Event "Titled Tuesday Blitz November 08 Early 2022"]
[White "Firouzja, Alireza"]
[Black "Iliaguev, Nisim"]
[WhiteFideId "12573981"]
[BlackFideId "2817276"]
[WhiteElo "2903"]
[BlackElo "2244"]
[Result "1-0"]
[Round "02"]
[TimeControl "180+1"]
[Date "2022.11.08"]
[WhiteClock "0:01:44"]
[BlackClock "0:00:29"]

1. d4 {[%clk 0:03:00]}  Nf6 {[%clk 0:02:59]} 2. Bg5 {[%clk 0:03:01]}  e6 {[%clk 0:02:58]} 3. e4 {[%clk 0:03:00]}  h6 {[%clk 0:02:59]} 4. Bxf6 {[%clk 0:03:00]}  Qxf6 {[%clk 0:03:00]} 5. c3 {[%clk 0:03:00]}  d6 {[%clk 0:03:00]} 6. Bd3 {[%clk 0:03:00]}  g6 {[%clk 0:03:00]} 7. Ne2 {[%clk 0:03:00]}  Bg7 {[%clk 0:03:01]} 8. O-O {[%clk 0:03:01]}  O-O {[%clk 0:03:01]} 9. Nd2 {[%clk 0:03:01]}  c5 {[%clk 0:03:01]} 10. d5 {[%clk 0:02:57]}  exd5 {[%clk 0:03:00]} 11. exd5 {[%clk 0:02:57]}  Bf5 {[%clk 0:02:55]} 12. Bxf5 {[%clk 0:02:57]}  Qxf5 {[%clk 0:02:56]} 13. Nc4 {[%clk 0:02:57]}  Qd7 {[%clk 0:02:53]} 14. a4 {[%clk 0:02:56]}  Qc7 {[%clk 0:02:39]} 15. Ng3 {[%clk 0:02:55]}  f5 {[%clk 0:02:39]} 16. Re1 {[%clk 0:02:55]}  Nd7 {[%clk 0:02:36]} 17. Re6 {[%clk 0:02:54]}  Ne5 {[%clk 0:02:23]} 18. Nxe5 {[%clk 0:02:30]}  dxe5 {[%clk 0:02:24]} 19. Rxg6 {[%clk 0:02:30]}  Qf7 {[%clk 0:02:22]} 20. Re6 {[%clk 0:02:16]}  Rad8 {[%clk 0:02:16]} 21. c4 {[%clk 0:02:09]}  e4 {[%clk 0:02:14]} 22. Qe2 {[%clk 0:02:04]}  Kh7 {[%clk 0:02:12]} 23. Rf1 {[%clk 0:02:03]}  Bd4 {[%clk 0:02:07]} 24. Qd2 {[%clk 0:01:58]}  Bg7 {[%clk 0:01:49]} 25. Qf4 {[%clk 0:01:58]}  b6 {[%clk 0:01:32]} 26. Kh1 {[%clk 0:01:54]}  Rd7 {[%clk 0:01:31]} 27. f3 {[%clk 0:01:53]}  e3 {[%clk 0:01:20]} 28. Qxe3 {[%clk 0:01:52]}  f4 {[%clk 0:01:14]} 29. Qe4+ {[%clk 0:01:52]}  Kh8 {[%clk 0:01:14]} 30. Ne2 {[%clk 0:01:52]}  Rdd8 {[%clk 0:00:49]} 31. Nc1 {[%clk 0:01:47]}  Rfe8 {[%clk 0:00:46]} 32. Nd3 {[%clk 0:01:46]}  Rxe6 {[%clk 0:00:46]} 33. dxe6 {[%clk 0:01:47]}  Qf6 {[%clk 0:00:38]} 34. e7 {[%clk 0:01:45]}  Re8 {[%clk 0:00:34]} 35. Nxf4 {[%clk 0:01:46]}  Qxb2 {[%clk 0:00:29]} 36. Qc6 {[%clk 0:01:44]} 1-0


[Site "https://www.chess.com"]

[Event "Titled Tuesday Blitz November 08 Early 2022"]
[White "Gabrielian, Artur"]
[Black "Schrik, Rachid"]
[WhiteFideId "4131002"]
[BlackFideId "1009818"]
[WhiteElo "2432"]
[BlackElo "2098"]
[Result "1-0"]
[Round "02"]
[TimeControl "180+1"]
[Date "2022.11.09"]
[WhiteClock "0:01:04"]
[BlackClock "0:00:03"]

1. e4 {[%clk 0:03:00]}  c5 {[%clk 0:02:59]} 2. Nf3 {[%clk 0:03:00]}  Nc6 {[%clk 0:02:59]} 3. Bb5 {[%clk 0:03:00]}  Nf6 {[%clk 0:02:59]} 4. Nc3 {[%clk 0:02:59]}  g6 {[%clk 0:02:58]} 5. O-O {[%clk 0:02:58]}  Bg7 {[%clk 0:02:58]} 6. d3 {[%clk 0:02:55]}  O-O {[%clk 0:02:56]} 7. e5 {[%clk 0:02:54]}  Ng4 {[%clk 0:02:54]} 8. Bxc6 {[%clk 0:02:54]}  dxc6 {[%clk 0:02:53]} 9. Re1 {[%clk 0:02:52]}  Nh6 {[%clk 0:02:53]} 10. Ne4 {[%clk 0:02:50]}  b6 {[%clk 0:02:50]} 11. Bf4 {[%clk 0:02:50]}  Nf5 {[%clk 0:02:45]} 12. Qd2 {[%clk 0:02:49]}  Nd4 {[%clk 0:02:38]} 13. Nxd4 {[%clk 0:02:48]}  cxd4 {[%clk 0:02:33]} 14. Bh6 {[%clk 0:02:47]}  Bxe5 {[%clk 0:02:19]} 15. Bxf8 {[%clk 0:02:45]}  Qxf8 {[%clk 0:02:16]} 16. Ng5 {[%clk 0:02:36]}  Bg7 {[%clk 0:02:10]} 17. Nf3 {[%clk 0:02:32]}  Bb7 {[%clk 0:02:00]} 18. Qg5 {[%clk 0:02:25]}  Bf6 {[%clk 0:01:54]} 19. Qf4 {[%clk 0:02:25]}  c5 {[%clk 0:01:50]} 20. Ne5 {[%clk 0:02:24]}  Qd8 {[%clk 0:01:24]} 21. Ng4 {[%clk 0:02:21]}  Bg7 {[%clk 0:01:01]} 22. Nh6+ {[%clk 0:02:18]}  Bxh6 {[%clk 0:01:01]} 23. Qxh6 {[%clk 0:02:18]}  Qd5 {[%clk 0:01:00]} 24. f3 {[%clk 0:02:18]}  e5 {[%clk 0:00:52]} 25. Re2 {[%clk 0:02:04]}  f5 {[%clk 0:00:50]} 26. Rae1 {[%clk 0:02:02]}  Re8 {[%clk 0:00:50]} 27. Qh4 {[%clk 0:01:49]}  b5 {[%clk 0:00:46]} 28. Qg3 {[%clk 0:01:44]}  e4 {[%clk 0:00:26]} 29. fxe4 {[%clk 0:01:43]}  fxe4 {[%clk 0:00:27]} 30. Rxe4 {[%clk 0:01:43]}  Rxe4 {[%clk 0:00:20]} 31. Rxe4 {[%clk 0:01:42]}  Qd7 {[%clk 0:00:12]} 32. Qb8+ {[%clk 0:01:28]}  Kg7 {[%clk 0:00:12]} 33. Qe5+ {[%clk 0:01:28]}  Kg8 {[%clk 0:00:12]} 34. Rf4 {[%clk 0:01:28]}  Qc6 {[%clk 0:00:08]} 35. Qb8+ {[%clk 0:01:25]}  Bc8 {[%clk 0:00:03]} 36. Qxa7 {[%clk 0:01:25]}  Qe6 {[%clk 0:00:03]} 37. Qxc5 {[%clk 0:01:13]}  Qe3+ {[%clk 0:00:03]} 38. Rf2 {[%clk 0:01:13]}  Qe1+ {[%clk 0:00:03]} 39. Rf1 {[%clk 0:01:13]}  Qe3+ {[%clk 0:00:04]} 40. Kh1 {[%clk 0:01:13]}  Bf5 {[%clk 0:00:04]} 41. Qd5+ {[%clk 0:01:05]}  Kg7 {[%clk 0:00:04]} 42. Qf3 {[%clk 0:01:05]}  Qd2 {[%clk 0:00:04]} 43. Qf2 {[%clk 0:01:05]}  Qg5 {[%clk 0:00:03]} 44. Qxd4+ {[%clk 0:01:05]}  Kh6 {[%clk 0:00:03]} 45. Qf4 {[%clk 0:01:04]} 1-0


[Site "https://www.chess.com"]

[Event "Titled Tuesday Blitz November 08 Early 2022"]
[White "Garagulya, Konstantin"]
[Black "Dahlgren, James Allen"]
[WhiteFideId "4128931"]
[BlackFideId "22256873"]
[WhiteElo "2329"]
[BlackElo "2183"]
[Result "0-1"]
[Round "02"]
[TimeControl "180+1"]
[Date "2022.11.09"]
[WhiteClock "0:00:32"]
[BlackClock "0:01:02"]

1. d4 {[%clk 0:01:46]}  e6 {[%clk 0:03:00]} 2. Nf3 {[%clk 0:01:46]}  c5 {[%clk 0:03:00]} 3. e3 {[%clk 0:01:45]}  Nf6 {[%clk 0:03:00]} 4. Bd3 {[%clk 0:01:46]}  Nc6 {[%clk 0:03:00]} 5. O-O {[%clk 0:01:46]}  d5 {[%clk 0:02:59]} 6. c3 {[%clk 0:01:45]}  Bd6 {[%clk 0:02:59]} 7. dxc5 {[%clk 0:01:45]}  Bxc5 {[%clk 0:03:00]} 8. Nbd2 {[%clk 0:01:46]}  O-O {[%clk 0:02:59]} 9. e4 {[%clk 0:01:46]}  dxe4 {[%clk 0:02:57]} 10. Nxe4 {[%clk 0:01:46]}  Nxe4 {[%clk 0:02:58]} 11. Bxe4 {[%clk 0:01:47]}  Bd7 {[%clk 0:02:49]} 12. Qc2 {[%clk 0:01:42]}  f5 {[%clk 0:02:49]} 13. Bd3 {[%clk 0:01:42]}  h6 {[%clk 0:02:38]} 14. Re1 {[%clk 0:01:39]}  Qf6 {[%clk 0:02:38]} 15. Bf4 {[%clk 0:01:28]}  Rfe8 {[%clk 0:02:25]} 16. Ne5 {[%clk 0:01:26]}  Rad8 {[%clk 0:02:20]} 17. Rad1 {[%clk 0:01:21]}  g5 {[%clk 0:02:16]} 18. Nxd7 {[%clk 0:01:21]}  Rxd7 {[%clk 0:02:14]} 19. Bc1 {[%clk 0:01:14]}  Ne5 {[%clk 0:02:01]} 20. Bb5 {[%clk 0:01:11]}  Rxd1 {[%clk 0:01:54]} 21. Qxd1 {[%clk 0:01:05]}  Rd8 {[%clk 0:01:47]} 22. Qe2 {[%clk 0:00:47]}  Ng4 {[%clk 0:01:36]} 23. Rf1 {[%clk 0:00:33]}  Qe5 {[%clk 0:01:05]} 24. h3 {[%clk 0:00:32]}  Qh2# {[%clk 0:01:02]} 0-1


[Site "https://www.chess.com"]